Cogmind - Beta 10.2 @@@ ROGUE MODE // 2021.02.03 @ 18:51:00 Player: Needle Result: Destroyed by as-26100 with Assembled Rifle Performance ------------- Evolutions (1) 500 Regions Visited (5) 1000 Robots Destroyed (15) 75 Value Destroyed (336) 336 Prototype IDs (3) 60 Alien Tech Used (0) 0 Bonus (-11) -11 TOTAL SCORE: 1960 Bonus ------- Friendly Fire -11 Cogmind --------- Core Integrity 0/400 Matter 265/300 Energy 13/100 System Corruption 0% Temperature Cool (0) Movement Flying (29) Location -9/Exiles Parts ------- > --- POWER (1) -------- (None) > --- PROPULSION (3) --- Improved Flight Unit Improved Flight Unit Improved Flight Unit > --- UTILITY (3) ------ EX Chip 1 > --- WEAPON (2) ------- (None) > --- INVENTORY (4) ---- Light Ion Engine Small Storage Unit Medium Storage Unit Improved Sensor Array Peak State ------------ > --- POWER ------------ Fission Core > --- PROPULSION ------- Flexi-carbon Leg Flexi-carbon Leg > --- UTILITY ---------- Small Storage Unit Phase Shifter > --- WEAPON ----------- Improved Medium Laser Improved Medium Laser > --- INVENTORY -------- Compact Wheel Improved Sensor Array Rocket Launcher [Rating: 27] Favorites ----------- Power Heavy Ion Engine Engine Heavy Ion Engine Power Core Fission Core Propulsion Flexi-carbon Leg Leg Flexi-carbon Leg Wheel Compact Wheel Hover Unit Makeshift Hover Unit Flight Unit Improved Flight Unit Utility Improved Heat Sink Device Improved Heat Sink Storage Medium Storage Unit Hackware EX Chip 1 Weapon Small Laser Energy Gun Small Laser Ballistic Gun Light Assault Rifle Ballistic Cannon Improved Light Cannon Launcher Rocket Launcher Build | -11 -10 -10 -9 -9 -9 ------- Run | Scr Mat Min Mat Min Exi Slots Evolved 2 | . . . 2 . . Power . | . . . . . . Propulsion 1 | . . . 1 . . Utility 1 | . . . 1 . . Weapon . | . . . . . . Parts Attached 41 | 6 4 13 9 1 8 Power 7 | 1 1 2 1 . 2 Engine 5 | 1 1 1 1 . 1 Core 2 | . . 1 . . 1 Reactor . | . . . . . . Propulsion 12 | 2 . 2 4 . 4 Treads . | . . . . . . Leg 6 | 2 . 2 2 . . Wheel 1 | . . . 1 . . Hover 1 | . . . . . 1 Flight 4 | . . . 1 . 3 Utility 10 | 1 . 4 3 1 1 Device 4 | . . 3 1 . . Storage 5 | 1 . 1 2 1 . Processor . | . . . . . . Hackware 1 | . . . . . 1 Protection . | . . . . . . Artifact . | . . . . . . Weapon 12 | 2 3 5 1 . 1 Energy Gun 5 | . 1 3 1 . . Energy Cannon . | . . . . . . Ballistic Gun 3 | 2 . 1 . . . Ballistic Cannon 2 | . 2 . . . . Launcher 2 | . . 1 . . 1 Special Weapon . | . . . . . . Impact Weapon . | . . . . . . Slashing Weapon . | . . . . . . Piercing Weapon . | . . . . . . Special Melee Weapon . | . . . . . . Unidentified Prototypes 3 | . 1 . 2 . . Parts Lost 15 | . . 7 1 . 7 Power 3 | . . 1 . . 2 Propulsion 6 | . . 2 1 . 3 Utility 1 | . . 1 . . . Weapon 5 | . . 3 . . 2 Highest Loss Streak 7 | . . 4 1 . 7 Average Slot Usage (%) 93 | . 84 83 94 100 98 Engine 10 | . 14 9 11 11 10 Leg 30 | . 28 26 29 33 32 Device 9 | . . 6 13 11 10 Storage 18 | . 14 13 17 22 21 Energy Gun 13 | . 1 10 19 22 12 Ballistic Cannon 4 | . 24 11 . . . Launcher 4 | . . 2 . . 9 Naked Turns . | . . . . . . Heaviest Build 38 | 10 19 21 37 37 38 Greatest Support 50 | 20 20 40 50 50 50 Greatest Overweight (x) 3 | 3 . . . . 1 Average Overweight (x) . | . . . . . . Largest Inventory Capacity 14 | 6 6 6 14 14 14 Average Capacity 10 | 5 6 5 8 14 13 Most Carried 14 | 6 6 6 13 14 14 Average Carried 9 | 2 5 4 7 13 13 Final Capacity 14 | 6 6 6 14 14 4 Final Carried 14 | 6 6 4 13 14 4 Class Distribution -------------------- 80% | Scavenger-Mutant 19% | Mutant Dominant Class ---------------- Mutant | -10/Materials Scavenger-Mutant | -10/Mines Scavenger-Mutant | -9/Materials Scavenger-Mutant | -9/Mines Scavenger-Mutant | -9/Exiles Resources | -11 -10 -10 -9 -9 -9 ----------- Run | Scr Mat Min Mat Min Exi Matter Collected 691 | 250 . 314 97 . 30 Remotely . | . . . . . . Salvage Created 720 | . . 296 424 . . Parts 25 | . . 4 21 . . Haulers Intercepted 2 | . . . 2 . . Recyclers Shooed 1 | . . . 1 . . Parts Field Recycled . | . . . . . . Retrieved Matter . | . . . . . . Parts Self-Destructed . | . . . . . . Prevented . | . . . . . . Kills | -11 -10 -10 -9 -9 -9 ------- Run | Scr Mat Min Mat Min Exi Combat Hostiles Destroyed 18 | . . 12 6 . . Guns 9 | . . 3 6 . . Cannons 6 | . . 6 . . . AOE 3 | . . 3 . . . Classes Destroyed 7 | . . 5 2 . . Worker 1 | . . 1 . . . Builder 1 | . . 1 . . . Hauler 2 | . . . 2 . . Recycler 2 | . . 1 1 . . Watcher 1 | . . . 1 . . Grunt 8 | . . 2 6 . . Assembled 10 | . . 10 . . . Best Kill Streak 6 | . . 6 3 . . Combat Bots Only 6 | . . 6 3 . . Max Kills in Single Turn 3 | . . 3 1 . . Gunslinging . | . . . . . . Exploded 3 | . . 3 . . . Melee . | . . . . . . Uniques/NPCs Destroyed . | . . . . . . Combat | -11 -10 -10 -9 -9 -9 -------- Run | Scr Mat Min Mat Min Exi Damage Taken 2224 | . . 1076 157 . 991 Core 603 | . . 202 61 . 340 Absorbed by Shields . | . . . . . . Core Remaining (%) 59 | 100 . 19 . . . Volleys Fired 67 | . 3 34 28 1 1 Largest 2 | . 2 2 2 2 1 Hottest 112 | . 78 112 96 96 40 Shots Fired 116 | . 6 61 46 2 1 Gun 80 | . . 31 46 2 1 Cannon 34 | . 6 28 . . . Launcher 2 | . . 2 . . . Special . | . . . . . . Kinetic 38 | . 6 32 . . . Thermal 76 | . . 27 46 2 1 Explosive 2 | . . 2 . . . Electromagnetic . | . . . . . . Robot Hit Streak 17 | . 2 14 17 . 1 Robot Miss Streak 3 | . 3 2 2 2 . Penetration Max . | . . . . . . Secondary Targets . | . . . . . . Shots Hit Robots 82 | . 3 42 36 . 1 Core Hits 41 | . . 25 15 . 1 Critical Hits 1 | . . 1 . . . Critical Kills . | . . . . . . Critical Parts Destroyed 1 | . . 1 . . . Melee Attacks . | . . . . . . Impact . | . . . . . . Slashing . | . . . . . . Piercing . | . . . . . . Sneak Attacks . | . . . . . . Combat Hostiles . | . . . . . . Follow-up Attacks . | . . . . . . Damage Inflicted 1473 | . 63 852 547 . 11 Guns 984 | . . 427 546 . 11 Cannons 338 | . 63 275 . . . Explosions 146 | . . 146 . . . Melee . | . . . . . . Ramming 5 | . . 4 1 . . Kinetic 390 | . 63 327 . . . Thermal 932 | . . 375 546 . 11 Explosive 146 | . . 146 . . . Electromagnetic . | . . . . . . Impact . | . . . . . . Slashing . | . . . . . . Piercing . | . . . . . . Highest Corruption . | . . . . . . Average Corruption . | . . . . . . Corruption Purged . | . . . . . . Overload Shots . | . . . . . . Overflow Damage 41 | . . 41 . . . Projectiles . | . . . . . . Explosions 41 | . . 41 . . . Melee . | . . . . . . Knockbacks 3 | . . 3 . . . Impact . | . . . . . . Kinetic 3 | . . 3 . . . Secondary . | . . . . . . Self-Inflicted Damage 50 | . . 50 . . . Shots 1 | . . 1 . . . Rammed 1 | . . 1 . . . Targets Rammed 2 | . . 1 1 . . Kicked 1 | . . . 1 . . Crushed . | . . . . . . Highest Temperature 308 | . 63 308 5 . . Average Temperature 76 | . 33 85 2 . . Received Heat Transfer 291 | . . 184 87 . 20 Siege Activations . | . . . . . . Robots Corrupted . | . . . . . . Combat Hostiles . | . . . . . . Parts Fried . | . . . . . . Impact Corruptions . | . . . . . . Robots Melted . | . . . . . . Combat Hostiles . | . . . . . . Parts Melted 3 | . . 2 1 . . Heat Transferred 2040 | . . 814 1201 . 25 Parts Sabotaged . | . . . . . . Parts Stolen . | . . . . . . Parts Stripped . | . . . . . . Power Chain Reactions . | . . . . . . Missiles Intercepted . | . . . . . . Alert | -11 -10 -10 -9 -9 -9 ------- Run | Scr Mat Min Mat Min Exi Peak Influence 230 | . 15 50 230 89 . Initial 89 | . . 5 19 89 . Average 72 | . 2 18 156 89 . Maximum Alert Level 1 | . . . 1 . . Low Security (%) 85 | 100 100 100 55 100 . Level 1 14 | . . . 44 . . Level 2 . | . . . . . . Level 3 . | . . . . . . Level 4 . | . . . . . . Level 5 . | . . . . . . High Security . | . . . . . . Max Security . | . . . . . . Squads Dispatched 3 | . 1 . 2 . . Investigation 1 | . . . 1 . . Extermination . | . . . . . . Reinforcement 2 | . 1 . 1 . . Assault . | . . . . . . Garrison . | . . . . . . Intercept . | . . . . . . Construction Impeded . | . . . . . . Haulers Reinforced . | . . . . . . Stealth | -11 -10 -10 -9 -9 -9 --------- Run | Scr Mat Min Mat Min Exi Distress Signals . | . . . . . . Communications Jammed . | . . . . . . Distress Signals . | . . . . . . Times Spotted 51 | . 1 21 8 . 21 Peak Tracking Total 12 | . 1 6 3 . 12 Tactical Retreats 2 | . . . . . 2 Traps | -11 -10 -10 -9 -9 -9 ------- Run | Scr Mat Min Mat Min Exi Traps Triggered . | . . . . . . Indirectly . | . . . . . . Trap Hack Attempts . | . . . . . . Triggered . | . . . . . . Disarmed . | . . . . . . Reprogrammed . | . . . . . . Reused . | . . . . . . Traps Extracted . | . . . . . . Installed . | . . . . . . Triggered . | . . . . . . Machines | -11 -10 -10 -9 -9 -9 ---------- Run | Scr Mat Min Mat Min Exi Machines Disabled . | . . . . . . Max in Single Turn . | . . . . . . Machines Sabotaged . | . . . . . . Garrisons Compromised . | . . . . . . Overloaded Fab Kills . | . . . . . . Fab Network Shutdowns . | . . . . . . Hacking | -11 -10 -10 -9 -9 -9 --------- Run | Scr Mat Min Mat Min Exi Machines Accessed 7 | . . . 4 . 3 Terminals 3 | . . . 3 . . Fabricators . | . . . . . . Repair Stations . | . . . . . . Recycling Units 1 | . . . 1 . . Scanalyzers . | . . . . . . Garrison Access . | . . . . . . Total Hacks 49 | . . . 9 . 40 Successful 44 | . . . 4 . 40 Failed 5 | . . . 5 . . Catastrophic . | . . . . . . Database Lockouts . | . . . . . . Manual 10 | . . . 10 . . Terminals 8 | . . . 8 . . Fabricators . | . . . . . . Repair Stations . | . . . . . . Recycling Units 1 | . . . 1 . . Scanalyzers . | . . . . . . Garrison Access . | . . . . . . Terminal Hacks 41 | . . . 1 . 40 Record 40 | . . . . . 40 Recall Reinforcements 1 | . . . 1 . . Fabricator Hacks . | . . . . . . Repair Station Hacks . | . . . . . . Recycling Unit Hacks . | . . . . . . Scanalyzer . | . . . . . . Garrison Access Hacks . | . . . . . . Unauthorized Hacks 3 | . . . 3 . . Terminals 2 | . . . 2 . . Assimilate 1 | . . . 1 . . Botnet 1 | . . . 1 . . Fabricators . | . . . . . . Repair Stations . | . . . . . . Recycling Units 1 | . . . 1 . . Tunnel 1 | . . . 1 . . Scanalyzers . | . . . . . . Garrison Access . | . . . . . . Data Cores Recovered . | . . . . . . Used . | . . . . . . Hacking Detections 3 | . . . 3 . . Full Trace Events . | . . . . . . Feedback Events . | . . . . . . Feedback Blocked . | . . . . . . Robot Schematics Acquired . | . . . . . . Robots Built . | . . . . . . Matter . | . . . . . . Time . | . . . . . . Total Robot Build Rating . | . . . . . . Part Schematics Acquired . | . . . . . . Parts Built . | . . . . . . Matter . | . . . . . . Time . | . . . . . . Total Part Build Rating . | . . . . . . Parts Repaired . | . . . . . . Time . | . . . . . . Parts Recycled . | . . . . . . Recycled Matter . | . . . . . . Retrieved Matter . | . . . . . . Retrieved Components . | . . . . . . Parts Scanalyzed . | . . . . . . Part Schematics Acquired . | . . . . . . Parts Damaged . | . . . . . . Bothacking | -11 -10 -10 -9 -9 -9 ------------ Run | Scr Mat Min Mat Min Exi Used RIF Installer . | . . . . . . Robots Hacked . | . . . . . . Non-combat . | . . . . . . Combat . | . . . . . . Robot Hacks Applied . | . . . . . . Relay Couplers Released . | . . . . . . Robots Rewired . | . . . . . . Allies Hacked . | . . . . . . Hacks Repelled . | . . . . . . Allies | -11 -10 -10 -9 -9 -9 -------- Run | Scr Mat Min Mat Min Exi Total Allies 3 | . . . 1 2 . Largest Group 3 | . . . 1 3 3 Highest-Rated Group 53 | . . . 10 53 53 Highest-Rated Ally 31 | . . . 10 31 31 Total Orders . | . . . . . . Ally Attacks . | . . . . . . Total Damage . | . . . . . . Kills . | . . . . . . Allies Corrupted . | . . . . . . Allies Melted . | . . . . . . Intel | -11 -10 -10 -9 -9 -9 ------- Run | Scr Mat Min Mat Min Exi Robot Analysis Total . | . . . . . . Derelict Logs Recovered 2 | . . 2 . . . Drone Launches . | . . . . . . Drone Recoveries . | . . . . . . Exploration | -11 -10 -10 -9 -9 -9 ------------- Run | Scr Mat Min Mat Min Exi Turns Passed 1926 | 67 133 382 376 205 763 Spaces Moved 1337 | 44 88 225 205 161 614 Core 28 | 8 . 20 . . . Treads . | . . . . . . Legs 1288 | 36 88 205 189 161 609 Wheels 16 | . . . 16 . . Hover 2 | . . . . . 2 Flight 3 | . . . . . 3 Fastest Speed 29 | 50 120 50 100 120 29 Average Speed 118 | 119 120 113 118 120 119 Slowest Speed 200 | 200 120 120 120 120 150 Overloaded Moves . | . . . . . . Propulsion Burnouts . | . . . . . . Robots Hopped . | . . . . . . Cave-ins Triggered . | . . . . . . Exploration Rate (%) 38 | 4 18 51 23 44 89 Regions Visited 5 Branch Regions 3 Pre-discovered Areas 3 | . . 1 1 . 1 Known Exits Taken 1 | . . . 1 . . Unknown Exits Taken 4 | 1 1 1 . 1 . Scrap Searched . | . . . . . . Spaces Dug . | . . . . . . Terrain Destroyed 22 | . 1 21 . . . Melee . | . . . . . . Projectile 3 | . 1 2 . . . AOE 19 | . . 19 . . . Terrain Rammed . | . . . . . . Walls Destroyed . | . . . . . . Machines Disabled . | . . . . . . Actions | -11 -10 -10 -9 -9 -9 --------- Run | Scr Mat Min Mat Min Exi Total 1570 | 55 114 289 295 171 646 Wait 51 | . 2 7 27 7 8 Move 1332 | 43 87 224 204 160 614 Hop . | . . . . . . Pick Up 36 | 6 6 4 14 1 5 Fast Attach 23 | 6 3 5 6 . 3 Attach 12 | . . 6 2 . 4 Detach 8 | . 2 3 3 . . Swap 7 | . 1 2 2 1 1 Drop 32 | . 10 3 8 1 10 Fire 67 | . 3 34 28 1 1 Melee . | . . . . . . Ram . | . . . . . . Kick 2 | . . 1 1 . . Crush . | . . . . . . Escape Stasis . | . . . . . . Rewire . | . . . . . . Trap . | . . . . . . Miscellaneous . | . . . . . . Route ------- -11/Scrapyard -10/Materials -10/Mines (discovered 2 exits: *Mat x2) -9/Materials (discovered 2 exits: *Min x2) -9/Mines (discovered 3 exits: [*Mat] / *Exi / [*Zio]) -9/Exiles (discovered 1 exit: [*Min]) History --------- Turn | Location | Event 10 | -11/Scrapyard | Discovered new exit (range 16) 68 | -11/Scrapyard | Entered Materials 192 | -10/Materials | Discovered new exit (range 8) 201 | -10/Materials | Entered Mines 232 | -10/Mines | Received a Rocket Launcher from a helpful Derelict 284 | -10/Mines | Assembled infested the area 289 | -10/Mines | Assisted by a Guerilla fighting off Assembled 315 | -10/Mines | Build established: Mutant 363 | -10/Mines | Core integrity fell below 50% 391 | -10/Mines | Lost 4 parts (2n2w) 521 | -10/Mines | Core integrity fell below 20% 557 | -10/Mines | Discovered new exit (range 9) 571 | -10/Mines | Discovered new exit (range 10) 583 | -10/Mines | Entered Materials 583 | -9/Materials | Evolved 2 slots: Propulsion x1, Utility x1 584 | -9/Materials | Identified exit to Mines 846 | -9/Materials | Build established: Scavenger-Mutant 959 | -9/Materials | Entered Mines 959 | -9/Mines | Accompanied by 1 ally 1005 | -9/Mines | Discovered new exit (range 6) 1038 | -9/Mines | A Derelict revealed a hidden shortcut to a safe place 1150 | -9/Mines | Deemed a non-threat by the Exiles lab entrance 1150 | -9/Mines | Discovered new exit (range 5) 1164 | -9/Mines | Entered Exiles 1164 | -9/Exiles | Accompanied by 3 allies 1182 | -9/Exiles | Discovered new exit (range 14) 1194 | -9/Exiles | Led the pair of lost Derelicts to a safe place 1211 | -9/Exiles | Met 8R-AWN 1307 | -9/Exiles | Met EX-HEX 1349 | -9/Exiles | Met EX-BIN 1502 | -9/Exiles | Met EX-DEC 1522 | -9/Exiles | Learned location of Zion (-7) 1582 | -9/Exiles | Visited The Gauntlet 1896 | -9/Exiles | Attacked by the Exiles 1921 | -9/Exiles | Core integrity fell below 50% 1927 | -9/Exiles | Core integrity fell below 20% 1927 | -9/Exiles | Destroyed by as-26100 with Assembled Rifle Last Messages --------------- 01909_ EX-BIN: "You can't kill me, my evil twin will get revenge!" 01909_ EX-BIN destroyed. 01909_ Dropped Imp. Heat Sink. 01910_ Acquired EX Chip 1. 01911_ Machine disabled. 01912_ Flexi-carbon Leg destroyed. 01912_ Knocked back. 01914_ Hvy. Ion Engine destroyed. 01915_ Acquired Mak. Hover Unit. 01916_ Dropped Aluminum Leg. 01917_ Dropped Med. Storage Unit. 01918_ Mak. Hover Unit destroyed. 01918_ Flexi-carbon Leg destroyed. 01918_ Knocked back. 01921_ 85-01T(g) destroyed. 01922_ Knocked back. 01923_ Dropped Lrg. Storage Unit. 01924_ Lgt. Nuclear Core destroyed. 01924_ Knocked back. 01925_ as-77149 destroyed. Map ----- +----------------------------------------------------+ | ??????????????????????????????#" #????? | | ??????????????????????????????#" ## #????? | | ??????????????????????????????#""""""## #????? | | ??????????????????????????????##"###### #????? | | ?????????????????????????????? "?????# #???"" | | ?????????????????????????????"""??????# #??""" | | ?????????????????????????????"""?????## ###"" | | ?????#######?????????????????????????#" | | ?????#!!! "#?????????????????????????#" | | ?????# "#?????????????????????????#" | | ?????# "#?????????????????????????#" | | #???## ""#??????????########???????#" | | #####" ""#??????????# """#???????#" | | ##" ""#??????????#"" """#???????## | | #"" #????????????#"" #????????# | | #????????????#"" #????????#" "X" | | ##???????????#"" "#????????#" """ | | "#???????????# ""#????????#" """"" | | ###?????????#"" ""#???????##" ###### | | ##????????### ###??????##"" #????? | | "###"" ######???### ###?######"" #????? | | "#?##" """#####X# #"###""""""" ##???? | | ##??#" """""" " "" ##??? | | ###???#"# "" """ #### | | #?????#### " " %! | | ?????????### @ | | ???????????### | | ?????????????## aa a | | ??????????????## %![ | | ???????????????##" ! a | | ????????????????#""" !=! """""" | | ???????????????##" =!a! ######""" | | ???????????????#"" !!=%*! ##????#####""" | | ???????????????#""" [!a!"""##?????????##""" | | ??????????????#""" !"""##???????????#"""" | | ??????????????#""" ""#???????????##"" | | ??????????????#"" ########??####"""" | | ??????????????#""" ## ####""" | | ??????????????#"" """" | | ??????????????##"" | | ???????????????#"""" ! | | ????????????????# % | | ????????????????#" = " "" | | ????????????????#"""" ""## ##""" " | | ????????????????#"" ""#### ######"" | | ????????????????#" """"##??# #????### | | ????????????????#""" """#??## ####???# | | ????????????????## ""##??#! "!#???? | | ?????????????????#"" """##???#" !#???? | | ?????????????????##""" ##????#" "#???? | +----------------------------------------------------+ Best States ------------- Heat Dissipation 52 Energy Generation 18 Energy Capacity 310 Matter Stores 300 Matter Capacity 300 Sight Range 16 Terrain Scan Density 10 Phase Shifting 5 Evasion (%) 50 Offensive Hacking 7 Item Schematics ----------------- None Robot Schematics ------------------ None Fabricated ------------ Nothing Alien Tech Used ----------------- None Achievements -------------- None Challenges ------------ None Game ------ Seed SurveybotExplosiveFilter Manual? 0 Play Time 00:33:16 Cumulative 52.1 hours Start 2021.02.03 @ 18:18:02 End 2021.02.03 @ 18:51:00 Sessions 1 Manual Loads 0 Difficulty Rogue Special Mode None Game No. 13 Rogue 13 Adventurer 0 Explorer 0 Win Type - Total 2 Types 1/0/0/1/0/0/0/0/0 Lore% 40 Gallery% 55 Achievement% 39 Wizard Run 0 Options --------- ASCII 0 Keyboard 1 Movement Numpad Keybinds 0 Fullscreen 2 Font 12/Smallcaps Map View 83x54 Tactical HUD 1 Map Filters NONE Filters BRIGHTNESS(130) Steam 0 RUN: 728a1f2b-4f3c-44e2-abcb-693468070898